bitfinex/quotes_SOLUSD_20250403
["timestamp","ask_amount","ask_price","bid_price","bid_amount"]
[1743714423375,4.81489197,116.65,116.63,26.17575149]
[1743714423574,4.81489197,116.65,116.64,26.17575149]
[1743714425059,4.81489197,116.65,116.64,71.00115184]
[1743714425757,4.81489197,116.65,116.64,79.57445184]
[1743714425961,4.81489197,116.65,116.64,60.92480298]
[1743714426279,4.81489197,116.65,116.62,6.3425]
[1743714426464,4.81489197,116.65,116.64,26.17575149]
[1743714427784,4.81489197,116.65,116.62,14.9169]
[1743714427982,4.81489197,116.65,116.64,26.17575149]
[1743714428361,4.81489197,116.65,116.62,14.9169]
[1743714428583,4.81489197,116.65,116.64,26.17575149]
[1743714429963,4.81489197,116.65,116.64,34.61575149]
[1743714434081,4.81489197,116.65,116.64,8.44]
[1743714434281,4.81489197,116.65,116.64,34.61575149]
[1743714436987,4.81489197,116.65,116.64,43.18905149]
[1743714437171,4.81489197,116.65,116.64,69.36480298]
[1743714439476,4.81489197,116.65,116.64,43.18905149]
[1743714440769,4.81489197,116.65,116.64,34.61575149]
[1743714441086,4.81489197,116.65,116.64,8.44]
[1743714441593,4.81489197,116.65,116.62,26.17575149]
[1743714442472,4.81489197,116.65,116.63,26.17575149]
[1743714442678,13.38759197,116.65,116.63,26.17575149]
[1743714442885,13.38759197,116.65,116.62,26.17575149]
[1743714443386,13.38759197,116.65,116.61,26.17575149]
[1743714443581,39.56334346,116.65,116.6,26.17575149]
[1743714444098,13.38759197,116.65,116.61,26.17575149]
[1743714446390,8.5741,116.63,116.6,26.17575149]
[1743714446889,34.74985149,116.63,116.59,32.34037837]
[1743714447269,27.87251306,116.62,116.57,26.17575149]
[1743714447995,26.17575149,116.6,116.55,26.17575149]
[1743714448367,0.14216157,116.58,116.49,87.2056]
[1743714448571,26.17575149,116.57,116.52,26.17575149]
[1743714448792,26.31791306,116.56,116.51,26.17575149]
[1743714450794,26.31791306,116.56,116.51,34.75855149]
[1743714451195,0.14216157,116.56,116.52,26.17575149]
[1743714451385,0.14216157,116.6,116.55,26.17575149]
[1743714451570,0.14216157,116.6,116.57,26.17575149]
[1743714451780,0.14216157,116.6,116.57,41.75293905]
[1743714451971,0.14216157,116.6,116.56,41.75293905]
[1743714452177,41.89510062,116.6,116.55,41.75293905]
[1743714452388,41.75293905,116.59,116.54,8.3]
[1743714452694,41.89510062,116.57,116.54,8.3]
[1743714452912,41.89510062,116.57,116.52,50.33443905]
[1743714453898,0.14216157,116.57,116.53,41.75293905]
[1743714454513,0.14216157,116.57,116.52,50.33443905]
[1743714454514,41.89510062,116.57,116.52,50.33443905]
[1743714455014,41.75293905,116.56,116.52,41.75293905]
[1743714455381,41.89510062,116.57,116.52,41.75293905]
[1743714456205,8.5792,116.56,116.52,41.75293905]
[1743714460606,76.31380062,116.57,116.52,50.33503905]
[1743714460805,52.07460062,116.57,116.52,41.75293905]
[1743714461003,52.07460062,116.57,116.5,16.8634]
[1743714461186,41.75293905,116.56,116.52,41.75293905]
[1743714462505,0.14216157,116.55,116.5,16.8634]
[1743714462702,0.14216157,116.55,116.51,41.75293905]
[1743714462912,41.89510062,116.55,116.49,22.8097]
[1743714463089,41.89510062,116.55,116.5,41.75293905]
[1743714463509,41.89510062,116.55,116.51,41.75293905]
[1743714464004,50.47570062,116.55,116.51,41.75293905]
[1743714464910,0.14216157,116.54,116.51,41.75293905]
[1743714467936,0.14216157,116.53,116.5,41.75293905]
[1743714472933,0.14216157,116.53,116.5,50.33653905]
[1743714473732,0.14216157,116.53,116.5,34.70784337]
[1743714474131,0.14216157,116.53,116.51,26.12424337]
[1743714477254,35.13112808,116.55,116.5,26.12424337]
[1743714477440,0.14216157,116.53,116.49,8.584]
[1743714477749,0.14216157,116.53,116.5,26.12424337]
[1743714477923,0.14216157,116.53,116.49,26.12424337]
[1743714477924,0.42648471,116.53,116.49,26.12424337]
[1743714478124,0.42648471,116.53,116.48,16.705]
[1743714478319,0.14216157,116.53,116.49,26.12424337]
[1743714478925,0.14216157,116.53,116.49,34.70834337]
[1743714479236,8.72366157,116.53,116.49,34.70834337]
[1743714479938,0.14216157,116.53,116.5,26.12424337]
[1743714482040,0.14216157,116.52,116.5,26.12424337]
[1743714482241,0.14216157,116.52,116.49,26.12424337]
[1743714484044,8.72446157,116.52,116.49,26.12424337]
[1743714484538,36.38750494,116.52,116.48,26.12424337]
[1743714484729,26.40856651,116.51,116.46,26.12424337]
[1743714485127,0.14216157,116.49,116.46,26.12424337]
[1743714485327,0.14216157,116.49,116.46,34.71084337]
[1743714485640,0.14216157,116.49,116.46,26.12424337]
[1743714486015,0.14216157,116.49,116.47,26.12424337]
[1743714487048,42.9851,116.55,116.48,26.12424337]
[1743714487258,8.5789,116.57,116.54,26.12424337]
[1743714487420,0.14216157,116.56,116.54,26.12424337]
[1743714487622,8.5789,116.57,116.54,26.12424337]
[1743714487823,0.14216157,116.56,116.54,26.12424337]
[1743714488159,0.14216157,116.57,116.53,8.08]
[1743714488337,0.14216157,116.57,116.55,26.12424337]
[1743714488718,20.0,116.6,116.55,26.12424337]
[1743714488922,0.14216157,116.59,116.57,26.12424337]
[1743714489118,0.14216157,116.59,116.58,26.12424337]
[1743714490323,0.14216157,116.61,116.58,26.12424337]
[1743714490641,0.14216157,116.61,116.59,26.12424337]
[1743714490845,0.14216157,116.61,116.58,26.12424337]
[1743714491433,96.61821537,116.63,116.58,26.12424337]
[1743714491639,26.40856651,116.62,116.57,8.08]
[1743714491835,26.40856651,116.62,116.58,26.12424337]
[1743714492644,56.42046651,116.62,116.58,26.12424337]
[1743714493421,0.14216157,116.61,116.58,26.12424337]
[1743714493821,0.14216157,116.61,116.57,34.20424337]
[1743714494046,0.28432314,116.6,116.57,8.08]
[1743714494344,26.55072808,116.58,116.51,327.7984]
[1743714494534,26.55072808,116.58,116.53,26.12424337]
[1743714495252,0.14216157,116.56,116.53,26.12424337]
[1743714495427,8.58,116.55,116.52,34.18424337]
[1743714496732,8.58,116.55,116.53,26.12424337]
[1743714496938,8.5785,116.57,116.54,26.12424337]
[1743714497135,8.5785,116.57,116.52,8.06]
[1743714497336,8.5785,116.57,116.53,26.12424337]
[1743714497541,0.14216157,116.56,116.53,26.12424337]
[1743714497741,0.14216157,116.56,116.52,34.18424337]
[1743714497970,0.14216157,116.56,116.53,26.12424337]
[1743714498268,0.14216157,116.56,116.52,8.06]
[1743714498269,0.14216157,116.56,116.52,34.18424337]
[1743714498747,0.14216157,116.56,116.53,26.12424337]
[1743714499755,8.58,116.55,116.53,26.12424337]
[1743714500237,8.58,116.55,116.52,26.12424337]
[1743714500431,8.58,116.55,116.53,26.12424337]
[1743714502528,8.58,116.55,116.54,26.12424337]
[1743714502729,8.58,116.55,116.53,26.12424337]
[1743714503153,8.58,116.55,116.51,14.5984]
[1743714503368,8.58,116.55,116.53,26.12424337]
[1743714503853,8.72066157,116.57,116.53,26.12424337]
[1743714504240,30.16696157,116.57,116.53,26.12424337]
[1743714504859,26.12424337,116.56,116.51,34.28424337]
[1743714505056,30.16696157,116.57,116.51,8.16]
[1743714505241,26.12424337,116.56,116.52,26.12424337]
[1743714505860,56.29120494,116.57,116.52,26.12424337]
[1743714506853,8.5785,116.57,116.53,26.12424337]
[1743714507155,18.64964886,116.6,116.56,26.12424337]
[1743714507156,8.5781,116.58,116.56,26.12424337]
[1743714507540,8.577,116.59,116.56,26.12424337]
[1743714508758,8.5766,116.6,116.57,26.12424337]
[1743714509944,8.5766,116.6,116.58,26.12424337]
[1743714510345,8.5755,116.61,116.58,26.12424337]
[1743714510552,8.5755,116.61,116.59,26.12424337]
[1743714511041,8.5755,116.61,116.6,26.12424337]
[1743714512458,8.71626157,116.63,116.59,26.12424337]
[1743714512660,8.71626157,116.63,116.59,34.20424337]
[1743714514453,8.71626157,116.63,116.61,26.12424337]
[1743714514652,8.71626157,116.63,116.6,26.12424337]
[1743714514853,8.71626157,116.63,116.59,34.20424337]
[1743714516856,0.14216157,116.59,116.53,6.6611]
[1743714517166,26.26640494,116.56,116.51,26.12424337]
[1743714518242,8.58,116.55,116.51,26.12424337]
[1743714518461,34.70424337,116.55,116.5,32.60964337]
[1743714518657,56.15424337,116.55,116.5,32.60964337]
[1743714519259,0.14216157,116.54,116.5,32.60964337]
[1743714519571,26.26640494,116.54,116.5,32.60964337]
[1743714520361,8.5814,116.53,116.5,32.60964337]
[1743714522469,8.72316157,116.54,116.5,32.60964337]
[1743714522671,8.72316157,116.54,116.51,26.12424337]
[1743714523468,8.72316157,116.54,116.5,6.4854]
[1743714523469,8.72176157,116.56,116.52,26.12424337]
[1743714523850,8.5796,116.56,116.53,26.12424337]
[1743714524170,8.5789,116.57,116.54,26.12424337]
[1743714524871,8.5789,116.57,116.53,26.12424337]
[1743714525251,56.14944337,116.57,116.53,26.12424337]
[1743714525751,56.14944337,116.57,116.52,34.14424337]
[1743714526872,56.14944337,116.57,116.53,26.12424337]
[1743714527769,0.14216157,116.56,116.53,26.12424337]
[1743714528075,0.14216157,116.56,116.52,34.14424337]
[1743714528967,8.58,116.55,116.52,34.14424337]
[1743714529175,8.5792,116.56,116.53,26.12424337]
[1743714530353,8.5792,116.56,116.52,34.14424337]
[1743714530557,34.70344337,116.56,116.52,34.14424337]
[1743714531472,8.5792,116.56,116.52,34.14424337]
[1743714532662,8.5792,116.56,116.53,26.12424337]
[1743714535490,8.5792,116.56,116.52,34.14424337]
[1743714536655,26.26640494,116.55,116.5,14.4254]
[1743714536852,8.5807,116.54,116.5,40.54964337]
[1743714537875,8.5807,116.54,116.51,26.12424337]
[1743714539378,34.70494337,116.54,116.48,39.35256514]
[1743714539586,56.15674337,116.54,116.5,26.12424337]
[1743714539880,30.0325,116.54,116.5,26.12424337]
[1743714541772,30.0325,116.54,116.48,55.85766514]
[1743714542075,30.0325,116.54,116.5,26.12424337]
[1743714545491,0.14216157,116.53,116.48,47.25256514]
[1743714545687,26.26640494,116.53,116.49,26.12424337]
[1743714545864,8.5822,116.52,116.49,26.12424337]
[1743714547866,8.5822,116.52,116.48,63.84500851]
[1743714548886,34.70644337,116.52,116.48,63.84500851]
[1743714549788,25.310581,116.52,116.48,54.44914614]
[1743714550991,8.5822,116.52,116.48,54.44914614]
[1743714551702,8.5822,116.52,116.48,63.85686878]
[1743714552791,8.5822,116.52,116.49,26.13610364]
[1743714556981,162.13610364,116.58,116.51,26.13610364]
[1743714557185,8.5785,116.57,116.52,7.86]
[1743714557368,8.5785,116.57,116.54,26.13610364]
[1743714557572,8.5785,116.57,116.52,7.86]
[1743714557573,8.5785,116.57,116.53,26.13610364]
[1743714558049,0.14216157,116.56,116.53,26.13610364]
[1743714558303,0.14216157,116.56,116.52,7.86]
[1743714558304,0.14216157,116.56,116.52,33.99610364]
[1743714558906,8.58,116.55,116.52,33.99610364]
[1743714559206,8.58,116.55,116.53,26.13610364]
[1743714559696,8.5792,116.56,116.53,26.13610364]
[1743714560614,8.72076157,116.57,116.54,26.13610364]
[1743714561183,8.5786,116.57,116.54,26.13610364]
[1743714562326,8.72026157,116.58,116.55,26.13610364]
[1743714563495,8.72026157,116.58,116.56,26.13610364]
[1743714563695,8.72026157,116.58,116.55,26.13610364]
[1743714564823,8.72026157,116.58,116.54,26.13610364]
[1743714565323,34.85636521,116.58,116.53,26.13610364]
[1743714566722,56.30086521,116.58,116.53,26.13610364]
[1743714567815,56.30086521,116.58,116.52,14.1374]
[1743714568019,56.30086521,116.58,116.53,26.13610364]
[1743714568214,0.28432314,116.57,116.53,26.13610364]
[1743714569100,8.5785,116.57,116.54,26.13610364]
[1743714570430,8.5785,116.57,116.55,26.13610364]
[1743714571920,8.5785,116.57,116.55,16.7079801]
[1743714572122,8.577,116.59,116.55,16.7079801]
[1743714572320,1.6569,116.62,116.58,16.7079801]
[1743714572531,0.14216157,116.62,116.59,16.7079801]
[1743714572733,8.5755,116.61,116.58,16.7079801]
[1743714573620,8.5755,116.61,116.59,16.7079801]
[1743714573826,0.14216157,116.62,116.59,16.7079801]
[1743714573827,8.5748,116.62,116.59,16.7079801]
[1743714574406,8.5744,116.63,116.6,24.5079801]
[1743714575524,8.5737,116.64,116.61,16.7079801]
[1743714575715,8.5737,116.64,116.62,16.7079801]
[1743714576227,36.86601834,116.65,116.63,16.7079801]
[1743714579033,36.86601834,116.65,116.62,16.7079801]
[1743714583926,0.42648471,116.64,116.57,7.9362]
[1743714584131,16.85014167,116.62,116.58,16.7079801]
[1743714584333,16.85014167,116.62,116.57,24.6441801]
[1743714584537,8.5755,116.61,116.57,24.6441801]
[1743714584913,8.4755,116.61,116.57,24.6441801]
[1743714585227,8.4755,116.61,116.57,23.0676801]
[1743714585827,8.577,116.59,116.56,321.26]
[1743714586136,8.577,116.59,116.56,16.7079801]
[1743714587840,8.577,116.59,116.56,52.10166052]
[1743714590843,0.14216157,116.58,116.54,26.10166052]
[1743714593440,8.5785,116.57,116.54,26.10166052]
[1743714593644,8.5785,116.57,116.55,26.10166052]
[1743714596246,8.578,116.58,116.56,26.10166052]
[1743714596539,8.71846157,116.6,116.57,26.10166052]
[1743714599754,8.5755,116.61,116.58,26.10166052]
[1743714600845,8.5755,116.61,116.57,26.10166052]
[1743714601746,8.71906157,116.6,116.57,26.10166052]
[1743714601925,8.71906157,116.6,116.56,27.74006052]
[1743714605955,8.71906157,116.6,116.57,26.10166052]
[1743714605956,8.5769,116.6,116.57,26.10166052]
[1743714607058,8.71766157,116.61,116.57,26.10166052]
[1743714607362,8.5755,116.61,116.57,26.10166052]
[1743714609658,46.71461001,116.62,116.57,16.70151001]
[1743714609862,0.14216157,116.59,116.53,16.7055]
[1743714610157,0.14216157,116.57,116.53,14.2307]
[1743714610339,0.14216157,116.57,116.53,30.93221001]
[1743714611763,0.14216157,116.57,116.53,23.21221001]
[1743714611964,8.5792,116.56,116.52,24.42151001]
[1743714612165,30.0273,116.56,116.52,24.42151001]
[1743714612545,0.14216157,116.52,116.47,8.5855]
[1743714612757,0.14216157,116.52,116.48,16.70151001]
[1743714613977,8.72476157,116.52,116.48,16.70151001]
[1743714615851,16.70151001,116.53,116.47,16.3058]
[1743714615852,144.5804,116.55,116.51,16.70151001]
[1743714616050,8.5804,116.55,116.52,16.70151001]
[1743714617360,8.5804,116.55,116.51,25.28431001]
[1743714617665,8.5804,116.55,116.51,26.12082868]
[1743714618462,26.26299025,116.56,116.51,26.12082868]
[1743714618463,0.14216157,116.56,116.52,26.12082868]
[1743714618666,0.14216157,116.56,116.53,26.12082868]
[1743714619559,8.72136157,116.56,116.53,26.12082868]
[1743714621067,0.14216157,116.55,116.51,13.9724]
[1743714621251,0.14216157,116.55,116.51,33.84082868]
[1743714621449,0.14216157,116.55,116.52,26.12082868]
[1743714621871,8.72286157,116.55,116.51,33.84082868]
[1743714623365,8.72286157,116.55,116.51,26.12082868]
[1743714623559,30.17286157,116.55,116.51,26.12082868]
[1743714627872,8.72286157,116.55,116.51,26.12082868]
[1743714628091,51.56,116.58,116.54,26.12082868]
[1743714628264,0.14216157,116.57,116.55,26.12082868]
[1743714628658,0.14216157,116.57,116.53,16.3011]
[1743714628959,0.14216157,116.57,116.55,26.12082868]
[1743714629278,8.72106157,116.57,116.55,26.12082868]
[1743714632076,8.72106157,116.57,116.54,26.12082868]
[1743714637076,8.72106157,116.57,116.55,26.12082868]
[1743714637461,8.5781,116.58,116.55,26.12082868]
[1743714637675,8.577,116.59,116.57,16.70302955]
[1743714640069,8.577,116.59,116.56,16.70302955]
[1743714640955,0.14216157,116.58,116.56,16.70302955]
[1743714641161,0.14216157,116.58,116.55,16.70302955]
[1743714641569,8.5785,116.57,116.55,16.70302955]
[1743714649366,8.5785,116.57,116.56,16.70302955]
[1743714649663,1.6305,116.63,116.56,18.25902955]
[1743714649982,8.5748,116.62,116.6,16.70302955]
[1743714650487,8.5748,116.62,116.59,16.70302955]
[1743714655396,0.14216157,116.61,116.58,16.70302955]
[1743714656696,230.46951426,116.61,116.53,1.6649]
[1743714656902,0.14216157,116.58,116.54,23.27972955]
[1743714657081,0.14216157,116.58,116.52,329.7815]
[1743714657082,88.68951426,116.58,116.52,321.2]
[1743714657286,0.14216157,116.56,116.53,16.70302955]
[1743714657485,8.58,116.55,116.53,16.70302955]
[1743714657887,8.58,116.55,116.51,6.1239]
[1743714658202,8.58,116.55,116.52,16.70302955]
[1743714658697,8.58,116.55,116.51,6.1239]
[1743714658879,0.14216157,116.54,116.51,26.0]
[1743714659204,0.14216157,116.54,116.51,16.70302955]
[1743714659577,8.72346157,116.54,116.51,26.0]
[1743714659778,8.72346157,116.54,116.5,26.12533678]
[1743714660398,8.72346157,116.54,116.48,8.5851]
[1743714660399,8.72346157,116.54,116.51,26.12533678]
[1743714660603,8.72346157,116.54,116.48,8.5851]
[1743714660779,8.72346157,116.54,116.51,26.12533678]
[1743714660980,8.72346157,116.54,116.5,26.12533678]
[1743714661587,34.84879835,116.54,116.5,26.12533678]
[1743714662597,8.5822,116.52,116.49,26.12533678]
[1743714663905,8.5822,116.52,116.45,376.43962142]
[1743714663906,19.07613357,116.52,116.45,36.58997256]
[1743714664200,0.14216157,116.49,116.46,26.12533678]
[1743714664383,0.42648471,116.49,116.46,26.12533678]
[1743714665280,0.42648471,116.49,116.44,26.12533678]
[1743714665281,45.20147035,116.49,116.44,26.12533678]
[1743714665650,45.20147035,116.49,116.45,26.12533678]
[1743714666399,0.14216157,116.47,116.45,26.12533678]
[1743714666703,8.86912314,116.49,116.45,26.12533678]
[1743714666929,136.0,116.51,116.48,26.12533678]
[1743714667129,136.0,116.51,116.48,33.84533678]
[1743714667703,144.5831,116.51,116.48,33.84533678]
[1743714668842,144.5831,116.51,116.48,7.72]
[1743714669135,144.5831,116.51,116.48,33.84533678]
[1743714669643,8.5831,116.51,116.48,33.84533678]
[1743714670656,94.4635,116.55,116.5,26.12533678]
[1743714670657,0.14216157,116.55,116.5,26.12533678]
[1743714670833,0.14216157,116.55,116.48,16.3051]
[1743714670834,0.14216157,116.55,116.53,26.12533678]
[1743714671340,0.14216157,116.55,116.52,33.84533678]
[1743714671804,9.00648471,116.55,116.52,33.84533678]
[1743714673319,0.14216157,116.55,116.53,26.12533678]
[1743714675355,0.14216157,116.55,116.54,26.12533678]
[1743714676149,21.5046,116.6,116.54,26.12533678]
[1743714676452,0.14216157,116.59,116.58,26.12533678]
[1743714676623,0.14216157,116.6,116.58,26.12533678]
[1743714677048,0.14216157,116.6,116.57,26.12533678]
[1743714678330,8.577,116.59,116.56,33.84533678]
[1743714678749,8.577,116.59,116.56,7.72]
[1743714678958,0.14216157,116.58,116.56,7.72]
[1743714680058,0.42648471,116.58,116.53,6.0213]
[1743714680231,8.5785,116.57,116.54,26.12533678]
[1743714680836,8.5785,116.57,116.55,26.12533678]
[1743714686256,8.72066157,116.57,116.56,26.12533678]
[1743714686555,0.14216157,116.57,116.56,26.12533678]
[1743714686742,0.14216157,116.58,116.56,26.12533678]
[1743714687057,0.14216157,116.58,116.57,26.12533678]
[1743714687258,8.5774,116.59,116.57,26.12533678]
[1743714688847,8.5764,116.6,116.58,26.12533678]
[1743714689554,8.5764,116.6,116.57,7.72]
[1743714689756,8.5764,116.6,116.58,26.12533678]
[1743714690364,8.5764,116.6,116.57,7.72]
[1743714690545,8.5764,116.6,116.57,33.84533678]
[1743714691450,0.42648471,116.59,116.56,26.12533678]
[1743714691760,0.42648471,116.59,116.53,6.0213]
[1743714691761,0.42648471,116.59,116.55,26.12533678]
[1743714692050,0.42648471,116.59,116.56,26.12533678]
[1743714692431,8.5778,116.58,116.56,26.12533678]
[1743714693563,8.5778,116.58,116.55,7.72]
[1743714693747,8.5778,116.58,116.56,26.12533678]
[1743714693943,8.5778,116.58,116.53,14.6023]
[1743714693944,0.14216157,116.57,116.53,6.0213]
[1743714694147,0.14216157,116.57,116.54,26.12533678]
[1743714694549,8.5792,116.56,116.54,26.12533678]
[1743714694750,8.5792,116.56,116.53,33.84533678]
[1743714695361,0.14216157,116.55,116.53,33.84533678]
[1743714696458,0.14216157,116.55,116.54,26.12533678]
[1743714698045,8.72216157,116.55,116.54,26.12533678]
[1743714698247,8.72216157,116.55,116.52,7.72]
[1743714698559,8.72216157,116.55,116.53,26.12533678]
[1743714698863,0.14216157,116.54,116.5,6.4869]
[1743714699035,0.14216157,116.54,116.52,26.12533678]
[1743714699463,8.72296157,116.54,116.52,26.12533678]
[1743714699960,0.14216157,116.54,116.53,26.12533678]
[1743714700464,8.72286157,116.54,116.53,26.12533678]
[1743714702959,8.72286157,116.54,116.51,7.72]
[1743714703179,8.72286157,116.54,116.52,26.12533678]
[1743714705469,8.72286157,116.54,116.51,7.72]
[1743714705655,8.72286157,116.54,116.52,26.12533678]
[1743714706069,8.72286157,116.54,116.53,26.12533678]
[1743714706965,0.14216157,116.54,116.53,26.12533678]
[1743714707166,8.86462314,116.55,116.53,26.12533678]
[1743714707167,8.72156157,116.56,116.53,26.12533678]
[1743714707369,8.72156157,116.56,116.55,26.12533678]
[1743714708782,8.5788,116.57,116.55,26.12533678]
[1743714708956,8.72036157,116.58,116.56,26.12533678]
[1743714709158,8.5773,116.59,116.57,26.12533678]
[1743714709358,8.71766157,116.61,116.58,26.12533678]
[1743714709572,8.71766157,116.61,116.59,26.12533678]
[1743714715775,8.71766157,116.61,116.58,26.12533678]
[1743714717279,8.71766157,116.61,116.59,26.12533678]
[1743714719277,0.14216157,116.6,116.59,26.12533678]
[1743714719453,0.14216157,116.6,116.58,26.12533678]
[1743714720082,8.71906157,116.6,116.58,26.12533678]
[1743714720274,8.71906157,116.6,116.55,52.6763]
[1743714720475,8.71906157,116.6,116.58,26.12533678]
[1743714720664,8.71906157,116.6,116.57,26.12533678]
[1743714720665,0.14216157,116.59,116.57,26.12533678]
[1743714720864,0.14216157,116.59,116.56,26.12533678]
[1743714721286,19.07613357,116.59,116.55,36.3767]
[1743714721592,90.63613357,116.59,116.55,30.0]
[1743714721889,90.63613357,116.59,116.55,56.12533678]
[1743714722078,0.14216157,116.57,116.55,56.12533678]
[1743714722778,0.14216157,116.57,116.55,30.0]
[1743714722977,0.14216157,116.57,116.55,56.12533678]
[1743714724192,8.72106157,116.57,116.55,56.12533678]
[1743714724485,0.14216157,116.57,116.56,26.12533678]
[1743714724664,8.71956157,116.59,116.56,26.12533678]
[1743714724864,174.64964886,116.61,116.58,26.12533678]
[1743714724865,8.5766,116.6,116.58,26.12533678]
[1743714726362,20.14216157,116.61,116.55,38.5799]
[1743714726363,0.14216157,116.61,116.59,26.12533678]
[1743714726564,8.5741,116.63,116.6,26.12533678]
[1743714726768,8.5741,116.63,116.61,26.12533678]
[1743714727286,0.42648471,116.62,116.59,33.82533678]
[1743714728084,8.5755,116.61,116.59,33.82533678]
[1743714731487,65.20147035,116.6,116.52,102.6545]
[1743714731785,0.42648471,116.6,116.56,26.12533678]
[1743714732669,0.42648471,116.6,116.57,26.12533678]
[1743714733693,8.577,116.59,116.57,26.12533678]
[1743714735783,0.14216157,116.58,116.56,26.12533678]
[1743714735990,0.42648471,116.58,116.55,30.0]
[1743714737291,8.577,116.59,116.56,26.12533678]
[1743714737502,8.577,116.59,116.57,26.12533678]
[1743714738797,8.577,116.59,116.56,26.12533678]
[1743714739696,8.577,116.59,116.56,16.70419084]
[1743714739999,0.14216157,116.58,116.56,16.70419084]
[1743714740296,8.72046157,116.58,116.56,16.70419084]
[1743714742680,0.14216157,116.58,116.56,16.70419084]
[1743714746204,8.72006157,116.58,116.56,16.70419084]
[1743714748099,0.14216157,116.58,116.56,16.70419084]
[1743714748803,8.71996157,116.58,116.56,16.70419084]
[1743714750522,8.71996157,116.58,116.55,46.70419084]
[1743714750706,8.71996157,116.58,116.55,30.0]
[1743714753711,8.86342314,116.57,116.55,30.0]
[1743714753889,97.12761398,116.57,116.55,30.0]
[1743714755214,80.42342314,116.57,116.55,30.0]
[1743714755597,0.14216157,116.56,116.55,30.0]
[1743714756418,8.72136157,116.56,116.55,30.0]
[1743714756904,0.14216157,116.56,116.55,30.0]
[1743714757103,8.72136157,116.56,116.55,30.0]
[1743714758411,0.14216157,116.56,116.55,30.0]
[1743714758613,0.14216157,116.56,116.55,46.70419084]
[1743714759920,60.42312314,116.57,116.55,46.70419084]
[1743714759921,0.14216157,116.57,116.55,46.70419084]
[1743714760511,8.578,116.58,116.55,46.70419084]
[1743714760512,8.578,116.58,116.56,16.70419084]
[1743714760734,0.14216157,116.59,116.57,16.70419084]
[1743714761217,0.14216157,116.59,116.58,16.70419084]
[1743714762008,8.71916157,116.59,116.58,16.70419084]
[1743714764894,8.71916157,116.59,116.57,16.70419084]
[1743714769718,0.14216157,116.58,116.56,16.70419084]
[1743714769887,0.14216157,116.58,116.55,16.70419084]
[1743714771019,8.72036157,116.58,116.56,16.70419084]
[1743714772143,8.72036157,116.58,116.53,16.2811]
[1743714772303,8.72036157,116.58,116.55,16.70419084]
[1743714772500,8.72036157,116.58,116.51,23.9441]
[1743714772501,0.14216157,116.56,116.51,23.9441]
[1743714772719,0.14216157,116.56,116.52,16.70419084]
[1743714772931,0.14216157,116.54,116.52,16.70419084]
[1743714773117,0.14216157,116.55,116.53,16.70419084]
[1743714773432,0.14216157,116.56,116.54,16.70419084]
[1743714774526,8.72166157,116.56,116.53,16.70419084]
[1743714778410,0.14216157,116.56,116.54,16.70419084]
[1743714779439,8.72146157,116.56,116.54,16.70419084]
[1743714781541,0.14216157,116.56,116.54,16.70419084]
[1743714781947,92.9918,116.6,116.55,16.70419084]
[1743714782121,8.71916157,116.59,116.56,16.70419084]
[1743714782453,0.28432314,116.58,116.55,16.70419084]
[1743714783641,8.5785,116.57,116.55,16.70419084]
[1743714785535,0.28432314,116.58,116.55,16.70419084]
[1743714785753,0.42648471,116.6,116.56,16.70419084]
[1743714786417,9.00278471,116.6,116.57,16.70419084]
[1743714786623,9.00278471,116.6,116.58,16.70419084]
[1743714788220,8.71846157,116.6,116.58,16.70419084]
[1743714789255,0.14216157,116.6,116.58,16.70419084]
[1743714789424,8.71856157,116.6,116.58,16.70419084]
[1743714790154,0.14216157,116.6,116.58,16.70419084]
[1743714790851,8.71856157,116.6,116.58,16.70419084]
[1743714791145,8.71856157,116.6,116.57,16.70419084]
[1743714791347,8.71856157,116.6,116.56,24.40419084]
[1743714791522,25.42275241,116.6,116.56,24.40419084]
[1743714792651,0.14216157,116.58,116.56,7.7]
[1743714792960,0.14216157,116.58,116.54,16.70419084]
[1743714794059,0.28432314,116.57,116.54,16.70419084]
[1743714794437,0.28432314,116.57,116.53,16.70419084]
[1743714794633,0.28432314,116.55,116.53,16.70419084]
[1743714795151,8.86432314,116.55,116.53,16.70419084]
[1743714795532,8.86432314,116.55,116.52,16.70419084]
[1743714796439,0.28432314,116.55,116.52,16.70419084]
[1743714796653,0.28432314,116.55,116.53,16.70419084]
[1743714797854,172.70419084,116.58,116.54,16.70419084]
[1743714798031,0.14216157,116.57,116.51,22.3178]
[1743714798233,0.14216157,116.57,116.54,16.70419084]
[1743714799049,8.72116157,116.57,116.54,16.70419084]
[1743714800340,0.28432314,116.56,116.51,22.3176]
[1743714800550,0.28432314,116.56,116.53,16.70419084]
[1743714801255,8.86422314,116.56,116.53,16.70419084]
[1743714805052,8.86422314,116.56,116.54,16.70419084]